bitfinex/quotes_BTCUSD_20241206
["timestamp","ask_amount","ask_price","bid_price","bid_amount"]
[1733510914265,0.12593005,101160.0,101150.0,0.160886]
[1733510914706,0.12593005,101160.0,101150.0,0.010886]
[1733510914929,0.20373005,101160.0,101150.0,0.010886]
[1733510915142,0.20273936,101160.0,101150.0,0.009886]
[1733510915570,0.20273936,101160.0,101140.0,0.019772]
[1733510915781,0.1035,101140.0,101130.0,0.009888]
[1733510916010,0.20352951,101140.0,101130.0,0.009888]
[1733510917549,0.20352951,101140.0,101130.0,0.011625]
[1733510919280,0.20352951,101140.0,101120.0,0.00585173]
[1733510919494,0.1240202,101130.0,101110.0,0.179778]
[1733510919707,0.1240202,101130.0,101120.0,0.009888]
[1733510920566,0.0762,101120.0,101110.0,0.05903657]
[1733510920828,0.19922951,101120.0,101110.0,0.05903657]
[1733510921942,0.19922951,101120.0,101110.0,0.06203657]
[1733510922184,0.19922951,101120.0,101110.0,0.02289]
[1733510923433,0.19922951,101120.0,101110.0,0.01989]
[1733510923635,0.19922951,101120.0,101110.0,0.01]
[1733510923847,0.19922951,101120.0,101110.0,0.01989]
[1733510924469,0.19922951,101120.0,101110.0,0.01]
[1733510925124,0.19922951,101120.0,101110.0,0.01989]
[1733510925537,0.19922951,101120.0,101110.0,0.01]
[1733510926192,0.44701351,101120.0,101110.0,0.01]
[1733510926400,0.24922951,101120.0,101110.0,0.01]
[1733510927045,0.023,101110.0,101090.0,0.009892]
[1733510927272,0.10002951,101100.0,101090.0,0.159891]
[1733510927491,0.12302951,101100.0,101090.0,0.159891]
[1733510928589,0.00099069,101110.0,101090.0,0.164891]
[1733510928801,0.12302951,101110.0,101100.0,0.009891]
[1733510929037,0.0762,101120.0,101110.0,0.00989]
[1733510929245,0.0495,101130.0,101120.0,0.009889]
[1733510929513,0.14970309,101130.0,101120.0,0.009889]
[1733510929729,0.10020309,101130.0,101120.0,0.009889]
[1733510930782,0.10119378,101130.0,101120.0,0.009889]
[1733510931140,0.12419378,101130.0,101120.0,0.009889]
[1733510931564,0.0837362,101160.0,101120.0,0.18930744]
[1733510931737,0.1027564,101160.0,101150.0,0.009886]
[1733510931954,0.0017362,101160.0,101150.0,0.009886]
[1733510932848,0.10176571,101160.0,101150.0,0.009886]
[1733510933884,0.0017362,101160.0,101150.0,0.009886]
[1733510934101,0.0017362,101160.0,101150.0,0.16087453]
[1733510935142,0.0247362,101160.0,101150.0,0.16087453]
[1733510935349,0.0247362,101160.0,101150.0,0.19037507]
[1733510936064,0.0247362,101160.0,101150.0,0.04037507]
[1733510936277,0.0247362,101160.0,101150.0,0.03938654]
[1733510937331,0.0247362,101160.0,101140.0,0.72528238]
[1733510937532,0.0247362,101160.0,101140.0,0.13129237]
[1733510937736,0.0247362,101160.0,101150.0,0.009886]
[1733510939387,0.0017362,101160.0,101150.0,0.009886]
[1733510939601,0.0017362,101160.0,101150.0,0.159886]
[1733510940468,0.0017362,101160.0,101150.0,0.153]
[1733510941111,0.0017362,101160.0,101150.0,0.156]
[1733510941542,2e-07,101160.0,101150.0,4.383]
[1733510941760,2e-07,101160.0,101150.0,0.158]
[1733510941971,2e-07,101160.0,101150.0,0.156]
[1733510942175,2e-07,101160.0,101150.0,0.158]
[1733510945045,2e-07,101160.0,101150.0,0.18768341]
[1733510949719,0.0017482,101170.0,101150.0,0.28771292]
[1733510949927,0.0017482,101170.0,101150.0,0.18768341]
[1733510950563,0.0017482,101170.0,101150.0,0.18568341]
[1733510951542,0.0017482,101170.0,101150.0,0.18768341]
[1733510951746,0.0017482,101170.0,101150.0,0.18855171]
[1733510951959,0.0017366,101160.0,101150.0,0.03255171]
[1733510952161,0.0017366,101160.0,101150.0,0.03555171]
[1733510952731,0.0017366,101160.0,101150.0,0.13558122]
[1733510952910,6e-07,101160.0,101150.0,0.28258122]
[1733510953109,0.0769372,101180.0,101160.0,0.15]
[1733510953532,0.0017372,101180.0,101160.0,0.37862951]
[1733510953740,0.0017372,101180.0,101170.0,4.157]
[1733510953741,2e-07,101180.0,101170.0,4.157]
[1733510953920,2e-07,101180.0,101170.0,0.36968126]
[1733510954119,2e-07,101180.0,101170.0,0.25002951]
[1733510954401,0.00057893,101180.0,101170.0,0.25002951]
[1733510954613,0.00057893,101180.0,101170.0,1.083]
[1733510955462,0.00057893,101180.0,101170.0,0.83]
[1733510955914,0.00057893,101180.0,101170.0,0.843]
[1733510956142,0.00057893,101180.0,101170.0,0.464]
[1733510958289,0.00057893,101180.0,101170.0,0.49284419]
[1733510960085,0.00057893,101180.0,101170.0,0.19184419]
[1733510960509,0.00057893,101180.0,101170.0,5.24184419]
[1733510960715,0.00057893,101180.0,101170.0,5.25172819]
[1733510961120,0.00057893,101180.0,101170.0,4.84672819]
[1733510961330,0.00057893,101180.0,101170.0,4.36172819]
[1733510961547,0.00057893,101180.0,101170.0,2.35172819]
[1733510961761,0.00057893,101180.0,101170.0,0.76072819]
[1733510963995,0.00057893,101180.0,101170.0,0.76159629]
[1733510965677,0.00057893,101180.0,101170.0,0.44659629]
[1733510965887,0.00057893,101180.0,101170.0,0.05259629]
[1733510965888,0.10477893,101180.0,101170.0,0.05259629]
[1733510966711,0.10477893,101180.0,101170.0,0.04759629]
[1733510967070,0.00057893,101180.0,101170.0,0.04959629]
[1733510967290,0.00057893,101180.0,101170.0,5.24959629]
[1733510967716,0.00115581,101190.0,101170.0,5.3416258]
[1733510967893,0.00017428,101190.0,101180.0,1.447883]
[1733510968279,2.8e-07,101190.0,101180.0,1.54791251]
[1733510968502,2.8e-07,101190.0,101180.0,0.25991251]
[1733510969066,0.00169328,101200.0,101190.0,0.009882]
[1733510971117,0.00269328,101200.0,101190.0,0.009882]
[1733510971772,0.02569328,101200.0,101190.0,0.009882]
[1733510975520,0.02569328,101200.0,101190.0,0.0107499]
[1733510975726,0.12695793,101200.0,101190.0,0.04648429]
[1733510975938,0.24965793,101200.0,101190.0,0.04648429]
[1733510976164,0.24842279,101200.0,101190.0,0.04648429]
[1733510976372,0.24842279,101200.0,101190.0,0.0107499]
[1733510976795,0.29842279,101200.0,101190.0,0.0008679]
[1733510977018,0.29842279,101200.0,101190.0,0.00732265]
[1733510977878,0.29742279,101200.0,101190.0,0.01720465]
[1733510978100,0.24742279,101200.0,101190.0,0.01720465]
[1733510978311,0.24842279,101200.0,101190.0,0.01720465]
[1733510979554,0.29812864,101200.0,101190.0,0.00732265]
[1733510980207,0.34812864,101200.0,101190.0,0.00732265]
[1733510980833,0.54575664,101200.0,101190.0,0.00732265]
[1733510981041,0.0779,101180.0,101170.0,0.0206341]
[1733510981325,0.24906512,101180.0,101170.0,0.02121283]
[1733510981566,0.29782951,101180.0,101170.0,0.01132983]
[1733510982546,0.24782951,101180.0,101170.0,0.01132983]
[1733510982776,0.0778,101190.0,101180.0,0.009882]
[1733510982974,0.0778,101190.0,101180.0,0.019764]
[1733510983173,0.04859913,101200.0,101190.0,0.009882]
[1733510983174,0.00139913,101200.0,101190.0,0.009882]
[1733510983377,0.10142864,101200.0,101190.0,0.159882]
[1733510983579,0.10266387,101200.0,101190.0,0.159882]
[1733510984932,0.12566387,101200.0,101190.0,0.159882]
[1733510985142,0.12566387,101200.0,101190.0,0.160882]
[1733510985383,0.05,101160.0,101150.0,0.0107543]
[1733510985644,0.1742654,101160.0,101150.0,0.0008683]
[1733510985845,0.023,101150.0,101140.0,0.03682337]
[1733510986063,0.073,101140.0,101130.0,0.009888]
[1733510986916,0.073,101140.0,101130.0,0.01006147]
[1733510987344,0.073,101140.0,101130.0,0.01406147]
[1733510988749,0.073,101140.0,101130.0,0.01606147]
[1733510989460,0.073,101140.0,101130.0,0.03563422]
[1733510990308,0.023,101140.0,101130.0,0.03563422]
[1733510990742,0.12426544,101140.0,101130.0,0.03563422]
[1733510990960,0.12426544,101140.0,101130.0,0.22296068]
[1733510991147,0.12426544,101140.0,101130.0,0.18563422]
[1733510991377,0.12426544,101140.0,101130.0,0.17563422]
[1733510991583,0.12426544,101140.0,101130.0,0.18552222]
[1733510992230,0.12426544,101140.0,101130.0,0.03552222]
[1733510992438,0.12426544,101140.0,101130.0,0.01594947]
[1733510993741,0.12426544,101140.0,101130.0,0.01194947]
[1733510993948,0.12826544,101140.0,101130.0,0.01194947]
[1733510994151,0.20846544,101140.0,101130.0,0.00994947]
[1733510994386,0.20722951,101140.0,101130.0,0.00994947]
[1733510994798,0.26035142,101140.0,101130.0,0.00994947]
[1733510995004,0.45697451,101140.0,101130.0,6.147e-05]
[1733510995207,0.25922951,101140.0,101130.0,0.00994947]
[1733510995425,0.30922951,101140.0,101130.0,6.147e-05]
[1733510996775,0.35852951,101140.0,101130.0,6.147e-05]
[1733510997668,0.55627451,101140.0,101130.0,6.147e-05]
[1733510998099,0.35852951,101140.0,101130.0,6.147e-05]
[1733510998963,0.35852951,101140.0,101130.0,0.00994947]
[1733510999376,0.25852951,101140.0,101130.0,0.00994947]
[1733510999602,0.18622951,101140.0,101130.0,0.00994947]
[1733511001021,0.20922951,101140.0,101130.0,0.00994947]
[1733511003400,0.056,101140.0,101130.0,0.00994947]
[1733511003614,0.0784378,101160.0,101140.0,0.009886]
[1733511003822,0.17846731,101160.0,101150.0,0.009886]
[1733511004454,0.0017378,101160.0,101150.0,0.009886]
[1733511004723,0.0017378,101160.0,101150.0,0.159886]
[1733511005139,0.0017378,101160.0,101150.0,0.1865604]
[1733511007501,0.0017378,101160.0,101150.0,0.1945604]
[1733511009211,0.1,101190.0,101170.0,0.009884]
[1733511009427,0.0017338,101210.0,101190.0,0.009881]
[1733511009634,0.0017338,101210.0,101190.0,0.019763]
[1733511009635,8e-07,101210.0,101190.0,0.019763]
[1733511009862,8e-07,101210.0,101200.0,0.00098807]
[1733511010281,8e-07,101210.0,101200.0,0.01086907]
[1733511010486,1.4e-07,101210.0,101200.0,0.26089858]
[1733511010699,1.4e-07,101210.0,101200.0,0.25991051]
[1733511010919,1.4e-07,101210.0,101200.0,0.29214582]
[1733511011147,1.4e-07,101210.0,101200.0,0.30114582]
[1733511011366,1.4e-07,101210.0,101200.0,0.19711631]
[1733511011798,1.4e-07,101210.0,101200.0,0.20611631]
[1733511012010,1.4e-07,101210.0,101200.0,0.19711631]
[1733511012433,1.4e-07,101210.0,101200.0,0.19211631]
[1733511012821,1.4e-07,101210.0,101200.0,0.19911631]
[1733511013295,1.4e-07,101210.0,101200.0,0.20111631]
[1733511013526,1.4e-07,101210.0,101200.0,0.20411631]
[1733511013738,1.4e-07,101210.0,101200.0,0.19511631]
[1733511013918,1.4e-07,101210.0,101200.0,0.20011631]
[1733511015052,1.4e-07,101210.0,101200.0,0.23748226]
[1733511017678,0.12302965,101210.0,101200.0,0.23748226]
[1733511017859,0.12377398,101210.0,101200.0,0.23748226]
[1733511018906,0.22177398,101210.0,101200.0,0.05524695]
[1733511019116,0.34662965,101210.0,101200.0,0.008]
[1733511019735,0.34662965,101210.0,101200.0,0.012881]
[1733511019993,0.24662965,101210.0,101200.0,0.003]
[1733511020215,0.24662965,101210.0,101200.0,0.009881]
[1733511020425,0.24662965,101210.0,101200.0,0.012881]
[1733511020641,0.24662965,101210.0,101200.0,0.017881]
[1733511020847,0.24662965,101210.0,101200.0,0.014881]
[1733511021069,0.24662965,101210.0,101200.0,0.02192136]
[1733511021489,0.24662965,101210.0,101200.0,0.01692136]
[1733511021705,0.24662965,101210.0,101200.0,0.00704036]
[1733511021915,0.44423865,101210.0,101190.0,0.04564157]
[1733511022128,0.07374433,101200.0,101190.0,0.009882]
[1733511022301,0.17377384,101200.0,101190.0,0.009882]
[1733511023869,0.17477384,101200.0,101190.0,0.009882]
[1733511024330,0.17777384,101200.0,101190.0,0.009882]
[1733511024976,0.12777384,101200.0,101190.0,0.009882]
[1733511026036,0.12677384,101200.0,101190.0,0.009882]
[1733511027092,0.12377384,101200.0,101190.0,0.009882]
[1733511031509,0.023,101200.0,101190.0,0.009882]
[1733511031723,0.0773358,101210.0,101200.0,0.009881]
[1733511031724,0.0017358,101210.0,101200.0,0.009881]
[1733511032162,0.00248013,101210.0,101200.0,0.009881]
[1733511032384,0.00248013,101210.0,101200.0,0.01284261]
[1733511032607,0.00248013,101210.0,101200.0,0.03219009]
[1733511033352,0.00248013,101210.0,101200.0,0.03519009]
[1733511033556,0.00248013,101210.0,101200.0,0.04019009]
[1733511033967,0.02548013,101210.0,101200.0,0.04019009]
[1733511034835,0.12550964,101210.0,101200.0,0.04019009]
[1733511035005,0.12550964,101210.0,101200.0,0.02084261]
[1733511035819,0.12550964,101210.0,101200.0,0.01784261]
[1733511036023,0.12650964,101210.0,101200.0,0.01784261]
[1733511036227,0.12650964,101210.0,101200.0,0.01284261]
[1733511036452,0.17650964,101210.0,101200.0,0.01284261]
[1733511036653,0.17950964,101210.0,101200.0,0.01284261]
[1733511037890,0.17950964,101210.0,101200.0,0.009881]
[1733511039502,0.17950964,101210.0,101200.0,0.00547065]
[1733511039503,0.25840964,101210.0,101200.0,0.00547065]
[1733511039700,0.1197,101200.0,101190.0,0.03227823]
[1733511039945,0.53195456,101200.0,101190.0,0.0008679]
[1733511040230,0.53461131,101200.0,101190.0,0.0008679]
[1733511040363,0.48461131,101200.0,101190.0,0.0008679]
[1733511041615,0.44891426,101200.0,101190.0,0.0008679]
[1733511041835,0.05,101170.0,101160.0,0.009884]
[1733511042053,0.17377384,101170.0,101160.0,0.04030211]
[1733511042257,0.05,101160.0,101140.0,0.019773]
[1733511042466,0.12377384,101150.0,101140.0,0.009886]
[1733511043121,0.12377384,101150.0,101140.0,0.01046434]
[1733511043962,0.12377384,101150.0,101140.0,0.01146434]
[1733511044375,0.00074433,101150.0,101140.0,0.01146434]
[1733511044588,0.00074433,101150.0,101140.0,0.03165242]
[1733511045013,0.00074433,101150.0,101140.0,0.06331839]
[1733511045222,0.00074433,101150.0,101140.0,0.06431839]
[1733511045647,0.02374433,101160.0,101150.0,0.009886]
[1733511045847,0.12377384,101160.0,101150.0,0.009886]
[1733511046816,0.12377384,101160.0,101150.0,0.01446812]
[1733511047015,0.12477384,101160.0,101150.0,0.17421076]
[1733511047835,0.12477384,101160.0,101140.0,0.009886]
[1733511048081,0.12477384,101160.0,101150.0,0.009886]
[1733511050779,0.001,101160.0,101150.0,0.009886]
[1733511051292,0.001,101160.0,101150.0,0.16087453]
[1733511051524,0.001,101160.0,101150.0,0.18775778]
[1733511051723,0.002,101160.0,101150.0,0.18775778]
[1733511052110,0.001,101160.0,101150.0,0.18676925]
[1733511052509,0.12377384,101160.0,101150.0,0.022771]
[1733511052714,0.12477384,101160.0,101150.0,0.028771]
[1733511053135,0.02474433,101160.0,101150.0,0.028771]
[1733511053518,0.02374433,101160.0,101150.0,0.022771]
[1733511053936,0.02574433,101160.0,101150.0,0.022771]
[1733511054140,0.02374433,101160.0,101150.0,0.022771]
[1733511054337,0.02374433,101160.0,101150.0,0.019771]
[1733511055226,0.02474433,101160.0,101150.0,0.019771]
[1733511055683,0.02374433,101160.0,101150.0,0.019771]
[1733511056103,0.02374433,101160.0,101150.0,0.022771]
[1733511057074,0.17377384,101160.0,101150.0,0.003]
[1733511057274,0.28768924,101160.0,101150.0,0.003]
[1733511057481,0.25342951,101160.0,101150.0,0.003]
[1733511057828,0.50033551,101160.0,101150.0,0.001]
[1733511058398,0.073,101140.0,101130.0,0.05106526]
[1733511058609,0.17302951,101140.0,101130.0,0.05722206]
[1733511058824,0.17302951,101140.0,101130.0,0.0259308]
[1733511059088,0.17302951,101140.0,101130.0,6.147e-05]
[1733511059313,0.30337384,101140.0,101130.0,6.147e-05]
[1733511059530,0.30262951,101140.0,101130.0,0.00994947]
[1733511059965,0.50137451,101140.0,101130.0,0.00606147]
[1733511060150,0.50037451,101140.0,101130.0,0.00306147]
[1733511060555,0.50637451,101140.0,101130.0,0.00406147]
[1733511061610,0.50637451,101140.0,101130.0,0.00106147]
[1733511062294,0.50937451,101140.0,101130.0,0.00106147]
[1733511062512,0.31162951,101140.0,101130.0,0.00106147]
[1733511062727,0.50937451,101140.0,101130.0,0.00106147]
[1733511062937,0.31162951,101140.0,101130.0,0.01094947]
[1733511063170,0.18942951,101140.0,101130.0,0.01728262]
[1733511063388,0.19017384,101140.0,101130.0,0.01728262]
[1733511063611,0.24017384,101140.0,101130.0,0.00739462]
[1733511063828,0.23942951,101140.0,101130.0,0.00106147]
[1733511064407,0.26242951,101140.0,101130.0,0.00106147]
[1733511064774,0.26242951,101140.0,101130.0,0.01094947]
[1733511065763,0.26242951,101140.0,101130.0,0.01728262]
[1733511066585,0.21242951,101140.0,101130.0,0.01728262]
[1733511066800,0.10902951,101140.0,101130.0,0.01728262]
[1733511068048,0.13202951,101140.0,101130.0,0.01728262]
[1733511068685,0.032,101140.0,101130.0,0.01728262]
[1733511069927,0.026,101140.0,101130.0,0.01628262]
[1733511070156,0.026,101140.0,101130.0,0.01828262]
[1733511070584,0.023,101140.0,101130.0,0.01828262]
[1733511070791,0.02374433,101150.0,101130.0,0.03805762]
[1733511070996,0.024738,101140.0,101130.0,0.17916962]
[1733511071635,0.024738,101140.0,101130.0,0.17816962]
[1733511072069,0.024738,101140.0,101130.0,0.02916962]
[1733511072512,0.024738,101140.0,101130.0,0.02816962]
[1733511073220,0.001738,101140.0,101130.0,0.02816962]
[1733511073938,0.001738,101140.0,101130.0,0.02916962]
[1733511074144,0.001738,101140.0,101130.0,0.25835836]
[1733511074348,0.00248153,101160.0,101150.0,0.009886]
[1733511074349,0.0017372,101160.0,101150.0,0.009886]
[1733511074553,0.10176671,101160.0,101150.0,0.009886]
[1733511075426,0.12476671,101160.0,101150.0,0.009886]
[1733511075604,0.12776671,101160.0,101150.0,0.009886]
[1733511076083,0.13376671,101160.0,101150.0,0.010886]
[1733511076293,0.0107372,101160.0,101150.0,0.0299404]
[1733511076929,0.0017372,101160.0,101150.0,0.0289404]
[1733511077144,0.0017372,101160.0,101150.0,0.0299404]
[1733511077817,0.0017372,101160.0,101150.0,0.0319404]
[1733511079185,0.12476671,101160.0,101150.0,0.0319404]
[1733511080777,0.12390271,101160.0,101150.0,0.0319404]
[1733511082296,0.12390271,101160.0,101150.0,0.003]
[1733511082517,0.20640271,101160.0,101150.0,0.04321612]
[1733511082733,0.20640271,101160.0,101150.0,0.009886]
[1733511084947,0.12390271,101160.0,101150.0,0.009886]
[1733511085161,0.12464704,101160.0,101150.0,0.009886]
[1733511085386,2e-07,101160.0,101150.0,0.159886]
[1733511085623,0.0762,101190.0,101180.0,0.009883]
[1733511085834,0.039528,101200.0,101190.0,0.009882]
[1733511086065,0.16592818,101210.0,101200.0,0.009881]
[1733511086066,0.0017358,101210.0,101200.0,0.009881]
[1733511086920,0.00231414,101210.0,101200.0,0.009881]
[1733511087349,0.00331414,101210.0,101200.0,0.015881]
[1733511087581,0.02631414,101210.0,101200.0,0.0433135]
[1733511088067,0.02631414,101210.0,101200.0,0.0463135]
[1733511089015,0.12708798,101210.0,101200.0,0.018881]
[1733511089225,0.12608798,101210.0,101200.0,0.012881]
[1733511089430,0.02605847,101210.0,101200.0,0.013881]
[1733511089675,0.02531414,101210.0,101200.0,0.013881]
[1733511089899,0.02531414,101210.0,101200.0,0.009881]
[1733511090107,0.12608798,101210.0,101200.0,0.011881]
[1733511091451,0.12908798,101210.0,101200.0,0.011881]
[1733511092123,0.12908798,101210.0,101200.0,0.0170215]
[1733511092343,0.12908798,101210.0,101200.0,0.04763551]
[1733511092791,0.12708798,101210.0,101200.0,0.04663551]
[1733511093026,0.25208798,101210.0,101200.0,0.03261401]
[1733511093240,0.023,101200.0,101190.0,0.009881]
[1733511093454,0.12302951,101200.0,101190.0,0.009881]
[1733511094483,0.12377384,101200.0,101190.0,0.009881]
[1733511095053,0.12377384,101200.0,101190.0,0.04107643]
[1733511095258,0.12377384,101200.0,101190.0,0.04814867]
[1733511095891,0.12377384,101200.0,101190.0,0.05014867]
[1733511096243,0.35207384,101200.0,101190.0,0.011882]
[1733511096450,0.35207384,101200.0,101190.0,0.002]
[1733511096451,0.30132951,101200.0,101190.0,0.002]
[1733511097138,0.073,101190.0,101180.0,0.019764]
[1733511097348,0.12302951,101190.0,101180.0,0.019764]
[1733511097931,0.1383,101200.0,101190.0,0.009882]
[1733511098124,0.28832951,101200.0,101190.0,0.009882]
[1733511098538,0.28532951,101200.0,101190.0,0.009882]
[1733511099143,0.35132951,101200.0,101190.0,0.009882]
[1733511099394,0.073,101190.0,101180.0,0.009882]
[1733511099582,0.17677384,101190.0,101180.0,0.009882]
[1733511100432,0.17377384,101190.0,101180.0,0.009882]
[1733511100655,0.17777384,101190.0,101180.0,0.009882]
[1733511101537,0.17777384,101190.0,101180.0,0.04941362]
[1733511101714,0.17777384,101190.0,101180.0,0.05633158]
[1733511102123,0.17777384,101190.0,101180.0,0.04941362]
[1733511103346,0.12777384,101190.0,101180.0,0.04941362]
[1733511104743,0.10402951,101190.0,101180.0,0.04941362]
[1733511105374,0.10477384,101190.0,101180.0,0.04941362]
[1733511105586,0.10177384,101190.0,101180.0,0.04941362]
[1733511105797,0.10077384,101190.0,101180.0,0.05733158]
[1733511106218,0.12377384,101190.0,101180.0,0.05733158]
[1733511106426,0.12477384,101190.0,101180.0,0.06333158]
[1733511106624,0.024,101190.0,101180.0,0.06233158]
[1733511106833,0.001,101190.0,101180.0,0.06533158]
[1733511107649,0.02474433,101190.0,101180.0,0.06533158]
[1733511108099,0.12477384,101190.0,101180.0,0.06533158]
[1733511109509,0.001,101190.0,101180.0,0.06533158]
[1733511109708,0.001,101190.0,101180.0,0.21533158]
[1733511110068,0.001,101190.0,101180.0,0.51363179]
[1733511112619,0.001,101190.0,101180.0,0.43573179]
[1733511112828,0.001,101190.0,101180.0,0.21533158]
[1733511113468,0.001,101190.0,101180.0,0.06533158]
[1733511113947,0.001,101190.0,101180.0,0.43586521]
[1733511114378,0.001,101190.0,101180.0,0.51776521]
[1733511117904,0.0027374,101190.0,101180.0,0.51776521]
[1733511118329,0.0027374,101190.0,101180.0,0.78240557]
[1733511118534,0.0027374,101190.0,101180.0,0.78282206]
[1733511119291,0.0027374,101190.0,101180.0,0.51795452]
[1733511119563,0.0027374,101190.0,101180.0,0.78282206]
[1733511120693,0.0027374,101190.0,101180.0,0.56209912]
[1733511121134,0.0027374,101190.0,101180.0,0.7829118]
[1733511121359,0.0027374,101190.0,101180.0,0.56209912]
[1733511121575,0.0027374,101190.0,101180.0,0.70102673]
[1733511121783,0.0027374,101190.0,101180.0,0.43615919]
[1733511121993,0.0027374,101190.0,101180.0,0.70116869]
[1733511122436,0.0027374,101190.0,101180.0,0.28616663]
[1733511122698,0.12651124,101190.0,101180.0,0.05841362]
[1733511124284,0.30571124,101190.0,101180.0,0.009]
[1733511124499,0.30496691,101190.0,101180.0,0.009]
[1733511124717,0.30416691,101190.0,101180.0,0.009]
[1733511124929,0.50181391,101190.0,101180.0,0.009]
[1733511125132,0.50181391,101190.0,101180.0,0.006]
[1733511125334,0.1522,101180.0,101170.0,0.03923561]
[1733511125512,0.30297384,101180.0,101170.0,0.03923561]
[1733511125750,0.30222951,101180.0,101170.0,0.00499883]
[1733511125945,0.30222951,101180.0,101170.0,0.009884]
[1733511125946,0.20222951,101180.0,101170.0,0.009884]
[1733511127089,0.20222951,101180.0,101170.0,0.010884]
[1733511127885,0.25222951,101180.0,101170.0,0.001]
[1733511128111,0.30222951,101180.0,101170.0,0.001]
[1733511128323,0.30222951,101180.0,101170.0,0.003]
[1733511128566,0.25222951,101180.0,101170.0,0.012884]
[1733511128790,0.0017374,101190.0,101180.0,0.009883]
[1733511129174,0.0017374,101190.0,101180.0,0.38533126]
[1733511129397,0.0017374,101190.0,101180.0,0.42953522]
[1733511129624,0.0017374,101190.0,101180.0,0.43171818]
[1733511130512,0.0027374,101190.0,101180.0,0.8233376]
[1733511130779,0.0027374,101190.0,101180.0,0.91729727]
[1733511131197,0.0017374,101190.0,101180.0,0.91729727]
[1733511131403,0.0247374,101190.0,101180.0,0.53067785]
[1733511131874,0.0247374,101190.0,101180.0,0.53567785]
[1733511132083,0.0247374,101190.0,101180.0,0.53067785]
[1733511132295,0.0247374,101190.0,101180.0,0.52867785]
[1733511132434,0.0247374,101190.0,101180.0,0.53367785]
[1733511133069,0.0247374,101190.0,101180.0,0.57357582]
[1733511134095,0.0247374,101190.0,101180.0,0.79480049]
[1733511134495,0.0247374,101190.0,101180.0,0.57357582]
[1733511134841,0.0017374,101190.0,101180.0,0.57357582]
[1733511135048,0.0017374,101190.0,101180.0,0.96519524]
[1733511135369,0.0017374,101190.0,101180.0,0.69997151]
[1733511136449,0.0017374,101190.0,101180.0,0.70035106]
[1733511138925,4e-07,101190.0,101180.0,0.80038057]
[1733511139183,4e-07,101190.0,101180.0,0.80033335]
[1733511139800,4e-07,101190.0,101180.0,0.4083816]
[1733511140011,4e-07,101190.0,101180.0,0.80030004]
[1733511141453,0.00231414,101210.0,101190.0,0.169762]
[1733511141732,0.00231414,101210.0,101200.0,0.38755883]
[1733511142161,1.4e-07,101210.0,101200.0,0.55832371]
[1733511142583,1.4e-07,101210.0,101200.0,0.82361032]
[1733511142767,1.4e-07,101210.0,101200.0,0.55832371]
[1733511142970,1.4e-07,101210.0,101200.0,0.89848924]
[1733511143405,1.4e-07,101210.0,101200.0,0.5065708]
[1733511143628,1.4e-07,101210.0,101200.0,0.89848924]
[1733511143849,1.4e-07,101210.0,101200.0,0.5065708]
[1733511144044,1.4e-07,101210.0,101200.0,0.5115708]
[1733511144419,1.4e-07,101210.0,101200.0,0.5065708]
[1733511144826,1.4e-07,101210.0,101200.0,0.5095708]
[1733511145433,0.00074447,101210.0,101200.0,0.5135708]
[1733511145809,0.09017304,101220.0,101200.0,0.5333318]
[1733511146185,0.20331684,101220.0,101210.0,0.15988]
[1733511146322,0.20331684,101220.0,101210.0,0.23630274]
[1733511146519,0.20331684,101220.0,101210.0,0.2428092]
[1733511146951,0.20331684,101220.0,101210.0,0.46384121]
[1733511147323,0.08028733,101220.0,101210.0,0.46384121]
[1733511147694,0.08028733,101220.0,101200.0,0.35449251]
[1733511147910,0.08028733,101220.0,101210.0,0.00988]
[1733511148671,0.08028733,101220.0,101210.0,0.01088]
[1733511148870,0.08028733,101220.0,101210.0,0.04651725]
[1733511149079,0.08028733,101220.0,101210.0,0.05151725]
[1733511149626,0.20331684,101220.0,101210.0,0.20151725]
[1733511150238,0.20331684,101220.0,101210.0,0.20451725]
[1733511150627,0.20331684,101220.0,101210.0,0.20151725]
[1733511151050,0.20331684,101220.0,101210.0,0.19651725]
[1733511151599,0.20331684,101220.0,101210.0,0.20151725]
[1733511151963,0.20331684,101220.0,101210.0,0.20251725]
[1733511152561,0.00458733,101220.0,101210.0,0.20251725]
[1733511153113,0.00458733,101220.0,101210.0,0.04586871]
[1733511153320,0.00458733,101220.0,101210.0,0.00988]
[1733511153735,0.20651684,101220.0,101210.0,0.00988]
[1733511154095,0.20825364,101220.0,101210.0,0.00988]
[1733511154748,0.08522413,101220.0,101210.0,0.00988]
[1733511155118,0.08522413,101220.0,101210.0,0.15988]
[1733511155529,0.08522413,101220.0,101210.0,0.2122434]
[1733511156431,0.20825364,101220.0,101210.0,0.2122434]
[1733511158837,0.20825364,101220.0,101200.0,0.13291499]
[1733511159055,0.12302951,101210.0,101200.0,0.26315499]
[1733511159349,0.12302951,101210.0,101200.0,0.11315499]
[1733511159553,0.25292951,101210.0,101200.0,0.11315499]
[1733511160620,0.25292951,101210.0,101200.0,0.26315499]
[1733511161049,0.25292951,101210.0,101200.0,0.29144669]
[1733511161514,0.25492951,101210.0,101200.0,0.29144669]
[1733511161726,0.25892951,101210.0,101200.0,0.29144669]
[1733511164193,0.25892951,101210.0,101200.0,0.26315499]
[1733511170467,0.006,101210.0,101200.0,0.48413407]
[1733511170906,0.006,101210.0,101200.0,0.52832989]
[1733511171294,0.004,101210.0,101200.0,0.52832989]
[1733511171429,0.00632413,101220.0,101210.0,0.15988]
[1733511171636,0.00632413,101220.0,101210.0,0.38098095]
[1733511171849,0.10635364,101220.0,101210.0,0.38098095]
[1733511172296,0.00632413,101220.0,101210.0,0.38098095]
[1733511174374,0.00632413,101220.0,101210.0,0.4250549]
[1733511174579,0.00632413,101220.0,101210.0,0.52487024]
[1733511176736,0.00632413,101220.0,101210.0,0.74629155]
[1733511176870,0.00632413,101220.0,101210.0,0.52487024]
[1733511177305,0.00632413,101220.0,101210.0,0.65124265]
[1733511178121,0.00632413,101220.0,101210.0,0.65424265]
[1733511178308,0.00632413,101220.0,101210.0,0.65824265]
[1733511178688,0.00632413,101220.0,101210.0,0.65524265]
[1733511179888,0.00632413,101220.0,101210.0,0.65824265]
[1733511180104,0.08412413,101220.0,101210.0,0.40842731]
[1733511180317,0.08412413,101220.0,101210.0,0.67407659]
[1733511180541,0.20715364,101220.0,101210.0,0.28252928]
[1733511180948,0.20715364,101220.0,101210.0,0.50093544]
[1733511181157,0.20715364,101220.0,101210.0,0.49693544]
[1733511181359,0.20715364,101220.0,101210.0,0.74975078]
[1733511181807,0.20715364,101220.0,101210.0,0.22140616]
[1733511182023,0.30385364,101220.0,101210.0,0.22140616]
[1733511182221,0.30385364,101220.0,101200.0,0.60021043]
[1733511182452,0.12302951,101210.0,101200.0,0.60021043]